[Event "Titled Tuesday Blitz August 22 Late 2023"]
[White "Serban, Cristian-Stefan"]
[Black "Koellner, Ruben Gideon"]
[WhiteFideId "1241443"]
[BlackFideId "12993093"]
[WhiteElo "2460"]
[BlackElo "2718"]
[Result "0-1"]
[Round "2"]
[TimeControl "180+1"]
[Date "2023.08.22"]
[WhiteClock "0:00:04"]
[BlackClock "0:00:58"]
[Board "74"]

1. d4 {[%clk 0:03:00]}  d6 {[%clk 0:03:00]} 2. Nf3 {[%clk 0:02:59]}  Nf6 {[%clk 0:02:58]} 3. b3 {[%clk 0:02:59]}  Nbd7 {[%clk 0:02:57]} 4. Bb2 {[%clk 0:02:59]}  g6 {[%clk 0:02:56]} 5. e3 {[%clk 0:02:59]}  Bg7 {[%clk 0:02:57]} 6. Bd3 {[%clk 0:02:58]}  O-O {[%clk 0:02:58]} 7. O-O {[%clk 0:02:58]}  Re8 {[%clk 0:02:58]} 8. c4 {[%clk 0:02:58]}  e5 {[%clk 0:02:59]} 9. dxe5 {[%clk 0:02:54]}  Nxe5 {[%clk 0:03:00]} 10. Nxe5 {[%clk 0:02:53]}  dxe5 {[%clk 0:03:00]} 11. Nc3 {[%clk 0:02:48]}  c6 {[%clk 0:03:00]} 12. Qc2 {[%clk 0:02:37]}  Qe7 {[%clk 0:02:59]} 13. Rad1 {[%clk 0:02:29]}  Bg4 {[%clk 0:02:50]} 14. Be2 {[%clk 0:02:29]}  Bf5 {[%clk 0:02:49]} 15. Qc1 {[%clk 0:02:20]}  Bf8 {[%clk 0:02:44]} 16. h3 {[%clk 0:02:13]}  h5 {[%clk 0:02:44]} 17. Rd2 {[%clk 0:02:08]}  Rad8 {[%clk 0:02:43]} 18. Rfd1 {[%clk 0:02:08]}  Rxd2 {[%clk 0:02:43]} 19. Qxd2 {[%clk 0:02:07]}  Qc7 {[%clk 0:02:42]} 20. Qc1 {[%clk 0:02:00]}  Rd8 {[%clk 0:02:40]} 21. Rxd8 {[%clk 0:01:59]}  Qxd8 {[%clk 0:02:41]} 22. Qd1 {[%clk 0:02:00]}  Qxd1+ {[%clk 0:02:41]} 23. Bxd1 {[%clk 0:02:00]}  Nd7 {[%clk 0:02:42]} 24. Ne2 {[%clk 0:01:44]}  f6 {[%clk 0:02:40]} 25. Nc1 {[%clk 0:01:39]}  Kf7 {[%clk 0:02:34]} 26. Kf1 {[%clk 0:01:39]}  Bb4 {[%clk 0:02:29]} 27. Ke2 {[%clk 0:01:37]}  a5 {[%clk 0:02:23]} 28. Nd3 {[%clk 0:01:34]}  Be7 {[%clk 0:02:21]} 29. Bc2 {[%clk 0:01:30]}  b6 {[%clk 0:02:13]} 30. h4 {[%clk 0:01:27]}  Bxd3+ {[%clk 0:01:58]} 31. Bxd3 {[%clk 0:01:26]}  f5 {[%clk 0:01:58]} 32. g3 {[%clk 0:01:26]}  e4 {[%clk 0:01:59]} 33. Bc2 {[%clk 0:01:24]}  Bf6 {[%clk 0:01:59]} 34. Ba3 {[%clk 0:01:18]}  Ke6 {[%clk 0:01:57]} 35. Bb1 {[%clk 0:01:15]}  Bc3 {[%clk 0:01:55]} 36. Bc2 {[%clk 0:01:13]}  Ne5 {[%clk 0:01:42]} 37. Bb1 {[%clk 0:01:08]}  Nf3 {[%clk 0:01:39]} 38. Bc2 {[%clk 0:01:08]}  Be5 {[%clk 0:01:25]} 39. Bb1 {[%clk 0:01:02]}  Bf6 {[%clk 0:01:18]} 40. Bc2 {[%clk 0:01:01]}  Ne5 {[%clk 0:01:17]} 41. Bb1 {[%clk 0:01:00]}  Ng4 {[%clk 0:01:18]} 42. Bc2 {[%clk 0:00:58]}  g5 {[%clk 0:01:18]} 43. hxg5 {[%clk 0:00:58]}  Bxg5 {[%clk 0:01:19]} 44. Bc1 {[%clk 0:00:21]}  Ne5 {[%clk 0:01:12]} 45. Bb2 {[%clk 0:00:18]}  Nf3 {[%clk 0:01:12]} 46. Bc1 {[%clk 0:00:16]}  h4 {[%clk 0:01:12]} 47. gxh4 {[%clk 0:00:17]}  Bxh4 {[%clk 0:01:13]} 48. Bb1 {[%clk 0:00:14]}  Ng1+ {[%clk 0:01:11]} 49. Kf1 {[%clk 0:00:13]}  Nh3 {[%clk 0:01:11]} 50. f3 {[%clk 0:00:04]}  exf3 {[%clk 0:01:12]} 51. e4 {[%clk 0:00:04]}  f4 {[%clk 0:01:10]} 52. Bc2 {[%clk 0:00:04]}  Bg3 {[%clk 0:01:06]} 53. Bd1 {[%clk 0:00:04]}  Ng5 {[%clk 0:01:06]} 54. Bd2 {[%clk 0:00:01]}  Nxe4 {[%clk 0:01:05]} 55. Be1 {[%clk 0:00:01]}  Bxe1 {[%clk 0:01:04]} 56. Kxe1 {[%clk 0:00:02]}  f2+ {[%clk 0:01:01]} 57. Kf1 {[%clk 0:00:03]}  Ke5 {[%clk 0:01:01]} 58. Bf3 {[%clk 0:00:03]}  Nd2+ {[%clk 0:00:59]} 59. Kxf2 {[%clk 0:00:03]}  Nxf3 {[%clk 0:01:00]} 60. Kxf3 {[%clk 0:00:04]}  c5 {[%clk 0:00:58]} 61. a3 {[%clk 0:00:04]}  Kf5 {[%clk 0:00:58]} 62. a4 {[%clk 0:00:04]} 0-1


[Site "https://www.chess.com"]

[Event "Titled Tuesday Blitz August 22 Late 2023"]
[White "Preotu, Razvan"]
[Black "Sernecki, Franciszek"]
[WhiteFideId "2613280"]
[BlackFideId "1169297"]
[WhiteElo "2718"]
[BlackElo "2457"]
[Result "1-0"]
[Round "2"]
[TimeControl "180+1"]
[Date "2023.08.22"]
[WhiteClock "0:01:34"]
[BlackClock "0:00:47"]
[Board "75"]

1. e4 {[%clk 0:03:00]}  c5 {[%clk 0:03:00]} 2. Nf3 {[%clk 0:03:01]}  Nc6 {[%clk 0:03:01]} 3. Bb5 {[%clk 0:03:01]}  e6 {[%clk 0:03:00]} 4. O-O {[%clk 0:03:01]}  Nge7 {[%clk 0:03:01]} 5. Re1 {[%clk 0:03:01]}  a6 {[%clk 0:03:01]} 6. Bf1 {[%clk 0:03:02]}  d5 {[%clk 0:03:02]} 7. exd5 {[%clk 0:03:01]}  exd5 {[%clk 0:03:02]} 8. d4 {[%clk 0:02:59]}  c4 {[%clk 0:02:53]} 9. b3 {[%clk 0:02:58]}  b5 {[%clk 0:02:52]} 10. a4 {[%clk 0:02:48]}  Bg4 {[%clk 0:02:47]} 11. axb5 {[%clk 0:02:48]}  axb5 {[%clk 0:02:47]} 12. Rxa8 {[%clk 0:02:48]}  Qxa8 {[%clk 0:02:48]} 13. Nc3 {[%clk 0:02:48]}  Na7 {[%clk 0:02:23]} 14. Ba3 {[%clk 0:02:40]}  g6 {[%clk 0:02:11]} 15. Qe2 {[%clk 0:02:34]}  Nc8 {[%clk 0:02:11]} 16. Nxb5 {[%clk 0:02:31]}  Bxf3 {[%clk 0:02:09]} 17. Qxf3 {[%clk 0:02:28]}  Qc6 {[%clk 0:02:05]} 18. bxc4 {[%clk 0:02:26]}  Bg7 {[%clk 0:01:52]} 19. cxd5 {[%clk 0:02:23]}  Qxc2 {[%clk 0:01:11]} 20. d6 {[%clk 0:02:08]}  O-O {[%clk 0:01:10]} 21. dxe7 {[%clk 0:02:07]}  Re8 {[%clk 0:01:10]} 22. d5 {[%clk 0:01:58]}  Qd2 {[%clk 0:01:06]} 23. Rd1 {[%clk 0:01:33]}  Qa5 {[%clk 0:00:47]} 24. d6 {[%clk 0:01:34]} 1-0


[Site "https://www.chess.com"]

[Event "Titled Tuesday Blitz August 22 Late 2023"]
[White "Volkov, Maksim"]
[Black "Eggleston, Thomas A"]
[WhiteFideId "54123070"]
[BlackFideId "412139"]
[WhiteElo "2707"]
[BlackElo "2449"]
[Result "0-1"]
[Round "2"]
[TimeControl "180+1"]
[Date "2023.08.22"]
[WhiteClock "0:00:07"]
[BlackClock "0:00:07"]
[Board "78"]

1. d4 {[%clk 0:03:00]}  Nf6 {[%clk 0:02:59]} 2. c4 {[%clk 0:03:00]}  c5 {[%clk 0:02:59]} 3. d5 {[%clk 0:03:00]}  e5 {[%clk 0:02:59]} 4. Nc3 {[%clk 0:03:00]}  d6 {[%clk 0:03:00]} 5. g3 {[%clk 0:03:00]}  Be7 {[%clk 0:03:00]} 6. Bg2 {[%clk 0:03:01]}  Nbd7 {[%clk 0:03:00]} 7. Nf3 {[%clk 0:03:01]}  Nf8 {[%clk 0:03:01]} 8. O-O {[%clk 0:03:01]}  Ng6 {[%clk 0:03:01]} 9. e4 {[%clk 0:02:59]}  O-O {[%clk 0:02:59]} 10. h3 {[%clk 0:02:56]}  h6 {[%clk 0:02:58]} 11. a3 {[%clk 0:02:54]}  Nh7 {[%clk 0:02:58]} 12. b4 {[%clk 0:02:52]}  b6 {[%clk 0:02:58]} 13. Rb1 {[%clk 0:02:51]}  f5 {[%clk 0:02:52]} 14. exf5 {[%clk 0:02:43]}  Bxf5 {[%clk 0:02:51]} 15. Rb2 {[%clk 0:02:43]}  e4 {[%clk 0:02:43]} 16. Nd2 {[%clk 0:02:31]}  Bf6 {[%clk 0:02:43]} 17. Ndxe4 {[%clk 0:02:11]}  Bxe4 {[%clk 0:02:36]} 18. Nxe4 {[%clk 0:02:12]}  Bxb2 {[%clk 0:02:34]} 19. Bxb2 {[%clk 0:02:13]}  Ng5 {[%clk 0:02:34]} 20. Qg4 {[%clk 0:02:09]}  Qc8 {[%clk 0:02:19]} 21. Qxc8 {[%clk 0:01:45]}  Raxc8 {[%clk 0:02:19]} 22. Nxd6 {[%clk 0:01:45]}  Rcd8 {[%clk 0:02:19]} 23. Nb5 {[%clk 0:01:43]}  Nf3+ {[%clk 0:02:12]} 24. Bxf3 {[%clk 0:01:35]}  Rxf3 {[%clk 0:02:12]} 25. bxc5 {[%clk 0:01:34]}  bxc5 {[%clk 0:02:11]} 26. Re1 {[%clk 0:01:28]}  Rb3 {[%clk 0:02:06]} 27. Bc1 {[%clk 0:01:23]}  Rb1 {[%clk 0:01:43]} 28. Nxa7 {[%clk 0:01:18]}  Ne5 {[%clk 0:01:40]} 29. Rxe5 {[%clk 0:01:12]}  Rxc1+ {[%clk 0:01:39]} 30. Kg2 {[%clk 0:01:12]}  Rxc4 {[%clk 0:01:39]} 31. Nb5 {[%clk 0:01:05]}  Rc2 {[%clk 0:01:34]} 32. Rf5 {[%clk 0:00:37]}  c4 {[%clk 0:01:20]} 33. d6 {[%clk 0:00:33]}  Rd2 {[%clk 0:01:15]} 34. g4 {[%clk 0:00:25]}  c3 {[%clk 0:00:52]} 35. Rc5 {[%clk 0:00:25]}  c2 {[%clk 0:00:48]} 36. a4 {[%clk 0:00:20]}  Rf8 {[%clk 0:00:42]} 37. Kg3 {[%clk 0:00:20]}  Rdxf2 {[%clk 0:00:37]} 38. Kh4 {[%clk 0:00:19]}  Rh2 {[%clk 0:00:25]} 39. Rc3 {[%clk 0:00:11]}  g5+ {[%clk 0:00:20]} 40. Kh5 {[%clk 0:00:11]}  Kg7 {[%clk 0:00:09]} 41. Rc7+ {[%clk 0:00:10]}  Rf7 {[%clk 0:00:08]} 42. d7 {[%clk 0:00:07]}  Rxh3# {[%clk 0:00:07]} 0-1


[Site "https://www.chess.com"]

[Event "Titled Tuesday Blitz August 22 Late 2023"]
[White "Buchenau, Frank"]
[Black "Krishnan, Varun"]
[WhiteFideId "4604350"]
[BlackFideId "5054508"]
[WhiteElo "2446"]
[BlackElo "2707"]
[Result "1-0"]
[Round "2"]
[TimeControl "180+1"]
[Date "2023.08.22"]
[WhiteClock "0:00:11"]
[BlackClock "0:00:09"]
[Board "79"]

1. e4 {[%clk 0:03:00]}  a6 {[%clk 0:03:00]} 2. d4 {[%clk 0:02:57]}  e6 {[%clk 0:03:01]} 3. Nf3 {[%clk 0:02:56]}  d5 {[%clk 0:03:01]} 4. e5 {[%clk 0:02:53]}  c5 {[%clk 0:03:02]} 5. c3 {[%clk 0:02:52]}  Nc6 {[%clk 0:03:01]} 6. Bd3 {[%clk 0:02:51]}  Bd7 {[%clk 0:02:58]} 7. O-O {[%clk 0:02:50]}  Qb6 {[%clk 0:02:57]} 8. dxc5 {[%clk 0:02:49]}  Bxc5 {[%clk 0:02:55]} 9. b4 {[%clk 0:02:48]}  Be7 {[%clk 0:02:53]} 10. Nbd2 {[%clk 0:02:44]}  Nh6 {[%clk 0:02:51]} 11. Nb3 {[%clk 0:02:43]}  Ng4 {[%clk 0:02:30]} 12. Qe2 {[%clk 0:02:40]}  f6 {[%clk 0:02:13]} 13. exf6 {[%clk 0:02:31]}  Bxf6 {[%clk 0:02:11]} 14. h3 {[%clk 0:01:57]}  Nge5 {[%clk 0:02:05]} 15. Be3 {[%clk 0:01:56]}  Qc7 {[%clk 0:01:59]} 16. Bf4 {[%clk 0:01:53]}  Nxf3+ {[%clk 0:01:53]} 17. Qxf3 {[%clk 0:01:53]}  e5 {[%clk 0:01:34]} 18. Rfe1 {[%clk 0:01:44]}  O-O-O {[%clk 0:01:25]} 19. Bg3 {[%clk 0:01:38]}  Rhe8 {[%clk 0:01:09]} 20. a4 {[%clk 0:01:34]}  Be6 {[%clk 0:00:50]} 21. Bxh7 {[%clk 0:01:25]}  Qf7 {[%clk 0:00:43]} 22. Nc5 {[%clk 0:01:22]}  g6 {[%clk 0:00:37]} 23. b5 {[%clk 0:01:01]}  Nb8 {[%clk 0:00:21]} 24. Nxe6 {[%clk 0:00:47]}  Rxe6 {[%clk 0:00:20]} 25. Bxe5 {[%clk 0:00:40]}  Rf8 {[%clk 0:00:20]} 26. Bxf6 {[%clk 0:00:21]}  Rxf6 {[%clk 0:00:19]} 27. Qg4+ {[%clk 0:00:20]}  Nd7 {[%clk 0:00:18]} 28. bxa6 {[%clk 0:00:14]}  bxa6 {[%clk 0:00:19]} 29. Rab1 {[%clk 0:00:14]}  Qxh7 {[%clk 0:00:18]} 30. Qg3 {[%clk 0:00:14]}  Rf4 {[%clk 0:00:17]} 31. Qd3 {[%clk 0:00:13]}  Nc5 {[%clk 0:00:10]} 32. Qxd5 {[%clk 0:00:13]}  Qc7 {[%clk 0:00:09]} 33. Qa8+ {[%clk 0:00:13]}  Kd7 {[%clk 0:00:09]} 34. Rbd1+ {[%clk 0:00:11]}  Qd6 {[%clk 0:00:09]} 35. Rxd6+ {[%clk 0:00:10]}  Kxd6 {[%clk 0:00:10]} 36. Qa7 {[%clk 0:00:11]}  Kd5 {[%clk 0:00:10]} 37. Qb6 {[%clk 0:00:09]}  Ne4 {[%clk 0:00:08]} 38. Rd1+ {[%clk 0:00:09]}  Ke5 {[%clk 0:00:08]} 39. Qd4+ {[%clk 0:00:09]}  Kf5 {[%clk 0:00:08]} 40. g3 {[%clk 0:00:09]}  Rxf2 {[%clk 0:00:08]} 41. Qd7+ {[%clk 0:00:07]}  Kg5 {[%clk 0:00:08]} 42. Qe7+ {[%clk 0:00:06]}  Kh6 {[%clk 0:00:08]} 43. Qxe4 {[%clk 0:00:06]}  R2f3 {[%clk 0:00:08]} 44. Kg2 {[%clk 0:00:06]}  Rf2+ {[%clk 0:00:08]} 45. Kg1 {[%clk 0:00:06]}  R2f3 {[%clk 0:00:09]} 46. Rd3 {[%clk 0:00:06]}  Rf1+ {[%clk 0:00:09]} 47. Kh2 {[%clk 0:00:06]}  R8f2+ {[%clk 0:00:10]} 48. Qg2 {[%clk 0:00:06]}  Rxg2+ {[%clk 0:00:11]} 49. Kxg2 {[%clk 0:00:07]}  Ra1 {[%clk 0:00:11]} 50. Rd4 {[%clk 0:00:07]}  Ra3 {[%clk 0:00:11]} 51. Rc4 {[%clk 0:00:07]}  Ra2+ {[%clk 0:00:11]} 52. Kf3 {[%clk 0:00:07]}  Kg5 {[%clk 0:00:11]} 53. h4+ {[%clk 0:00:08]}  Kh6 {[%clk 0:00:11]} 54. Kg4 {[%clk 0:00:07]}  Rd2 {[%clk 0:00:10]} 55. Rd4 {[%clk 0:00:07]}  Rc2 {[%clk 0:00:10]} 56. Rc4 {[%clk 0:00:05]}  Ra2 {[%clk 0:00:11]} 57. Kf4 {[%clk 0:00:05]}  Rf2+ {[%clk 0:00:11]} 58. Ke3 {[%clk 0:00:05]}  Rg2 {[%clk 0:00:11]} 59. Kf3 {[%clk 0:00:05]}  Rd2 {[%clk 0:00:11]} 60. g4 {[%clk 0:00:05]}  Rd3+ {[%clk 0:00:11]} 61. Kf4 {[%clk 0:00:05]}  Rd1 {[%clk 0:00:12]} 62. Rc6 {[%clk 0:00:06]}  Rf1+ {[%clk 0:00:12]} 63. Ke5 {[%clk 0:00:06]}  Rg1 {[%clk 0:00:11]} 64. h5 {[%clk 0:00:05]}  Kh7 {[%clk 0:00:09]} 65. Rxg6 {[%clk 0:00:06]}  Ra1 {[%clk 0:00:09]} 66. Kd4 {[%clk 0:00:06]}  Rd1+ {[%clk 0:00:09]} 67. Kc4 {[%clk 0:00:06]}  a5 {[%clk 0:00:10]} 68. Kb5 {[%clk 0:00:06]}  Rd3 {[%clk 0:00:09]} 69. c4 {[%clk 0:00:06]}  Rb3+ {[%clk 0:00:09]} 70. Kxa5 {[%clk 0:00:05]}  Rb1 {[%clk 0:00:10]} 71. c5 {[%clk 0:00:06]}  Rc1 {[%clk 0:00:10]} 72. c6 {[%clk 0:00:07]}  Rc5+ {[%clk 0:00:10]} 73. Kb6 {[%clk 0:00:07]}  Rc1 {[%clk 0:00:10]} 74. a5 {[%clk 0:00:07]}  Rb1+ {[%clk 0:00:10]} 75. Ka6 {[%clk 0:00:08]}  Ra1 {[%clk 0:00:10]} 76. c7 {[%clk 0:00:08]}  Rc1 {[%clk 0:00:11]} 77. Kb7 {[%clk 0:00:09]}  Rc2 {[%clk 0:00:10]} 78. a6 {[%clk 0:00:09]}  Rb2+ {[%clk 0:00:10]} 79. Kc8 {[%clk 0:00:09]}  Rc2 {[%clk 0:00:10]} 80. a7 {[%clk 0:00:09]}  Ra2 {[%clk 0:00:10]} 81. Kb8 {[%clk 0:00:09]}  Rb2+ {[%clk 0:00:10]} 82. Ka8 {[%clk 0:00:09]}  Rc2 {[%clk 0:00:10]} 83. Kb7 {[%clk 0:00:10]}  Rb2+ {[%clk 0:00:11]} 84. Rb6 {[%clk 0:00:10]}  Rc2 {[%clk 0:00:10]} 85. a8=Q {[%clk 0:00:10]}  Rf2 {[%clk 0:00:09]} 86. Rh6+ {[%clk 0:00:09]}  Kxh6 {[%clk 0:00:09]} 87. Qh8+ {[%clk 0:00:10]}  Kg5 {[%clk 0:00:09]} 88. Qe5+ {[%clk 0:00:10]}  Kh4 {[%clk 0:00:09]} 89. Qe7+ {[%clk 0:00:09]}  Kh3 {[%clk 0:00:09]} 90. c8=Q {[%clk 0:00:10]}  Rb2+ {[%clk 0:00:08]} 91. Ka7 {[%clk 0:00:10]}  Rb3 {[%clk 0:00:08]} 92. Qa6 {[%clk 0:00:10]}  Kh2 {[%clk 0:00:08]} 93. g5 {[%clk 0:00:11]}  Rg3 {[%clk 0:00:08]} 94. Qe5 {[%clk 0:00:11]}  Kg2 {[%clk 0:00:07]} 95. Qc6+ {[%clk 0:00:10]}  Kh2 {[%clk 0:00:07]} 96. Qxg3+ {[%clk 0:00:10]}  Kxg3 {[%clk 0:00:07]} 97. g6 {[%clk 0:00:10]}  Kh4 {[%clk 0:00:07]} 98. g7 {[%clk 0:00:11]}  Kxh5 {[%clk 0:00:07]} 99. g8=Q {[%clk 0:00:12]}  Kh4 {[%clk 0:00:08]} 100. Qf6+ {[%clk 0:00:11]}  Kh3 {[%clk 0:00:09]} 101. Qh6# {[%clk 0:00:11]} 1-0


[Site "https://www.chess.com"]

[Event "Titled Tuesday Blitz August 22 Late 2023"]
[White "carokannlover213"]
[Black "Jonkman, Harmen"]
[BlackFideId "1002708"]
[WhiteElo "2706"]
[BlackElo "2431"]
[Result "1-0"]
[Round "2"]
[TimeControl "180+1"]
[Date "2023.08.22"]
[WhiteClock "0:00:05"]
[BlackClock "0:00:01"]
[Board "80"]

1. e4 {[%clk 0:03:00]}  e5 {[%clk 0:02:57]} 2. Nf3 {[%clk 0:03:00]}  Nc6 {[%clk 0:02:57]} 3. Bb5 {[%clk 0:03:01]}  Nf6 {[%clk 0:02:55]} 4. d3 {[%clk 0:03:01]}  Bc5 {[%clk 0:02:54]} 5. c3 {[%clk 0:03:01]}  O-O {[%clk 0:02:53]} 6. O-O {[%clk 0:03:02]}  Re8 {[%clk 0:02:53]} 7. Nbd2 {[%clk 0:03:00]}  a6 {[%clk 0:02:50]} 8. Bxc6 {[%clk 0:02:43]}  bxc6 {[%clk 0:02:48]} 9. Nc4 {[%clk 0:02:42]}  d6 {[%clk 0:02:24]} 10. Be3 {[%clk 0:02:40]}  Bxe3 {[%clk 0:02:19]} 11. Nxe3 {[%clk 0:02:41]}  a5 {[%clk 0:02:16]} 12. Re1 {[%clk 0:02:34]}  a4 {[%clk 0:02:09]} 13. b4 {[%clk 0:02:30]}  axb3 {[%clk 0:02:07]} 14. axb3 {[%clk 0:02:31]}  Be6 {[%clk 0:01:58]} 15. b4 {[%clk 0:02:28]}  Rxa1 {[%clk 0:01:56]} 16. Qxa1 {[%clk 0:02:28]}  Qa8 {[%clk 0:01:57]} 17. Qa5 {[%clk 0:02:08]}  Qb7 {[%clk 0:01:33]} 18. Ra1 {[%clk 0:02:03]}  Nd7 {[%clk 0:01:30]} 19. Qa7 {[%clk 0:02:01]}  Qc8 {[%clk 0:00:58]} 20. h3 {[%clk 0:01:32]}  h6 {[%clk 0:00:58]} 21. Qa6 {[%clk 0:01:29]}  c5 {[%clk 0:00:57]} 22. b5 {[%clk 0:01:21]}  Qb8 {[%clk 0:00:48]} 23. c4 {[%clk 0:01:18]}  Nf8 {[%clk 0:00:42]} 24. Qa7 {[%clk 0:01:07]}  Qd8 {[%clk 0:00:34]} 25. Qb7 {[%clk 0:00:46]}  Ng6 {[%clk 0:00:26]} 26. Ra7 {[%clk 0:00:45]}  Nf4 {[%clk 0:00:26]} 27. Qxc7 {[%clk 0:00:11]}  Qf6 {[%clk 0:00:25]} 28. Ne1 {[%clk 0:00:09]}  Bxh3 {[%clk 0:00:23]} 29. b6 {[%clk 0:00:04]}  Bxg2 {[%clk 0:00:13]} 30. N1xg2 {[%clk 0:00:05]}  Nxd3 {[%clk 0:00:13]} 31. Nf5 {[%clk 0:00:03]}  g6 {[%clk 0:00:05]} 32. Qxd6 {[%clk 0:00:04]}  Qg5 {[%clk 0:00:04]} 33. Re7 {[%clk 0:00:03]}  Rf8 {[%clk 0:00:04]} 34. Ne3 {[%clk 0:00:02]}  Nf4 {[%clk 0:00:03]} 35. Kf1 {[%clk 0:00:03]}  Nh3 {[%clk 0:00:02]} 36. b7 {[%clk 0:00:03]}  Rd8 {[%clk 0:00:01]} 37. Qxd8+ {[%clk 0:00:03]}  Kg7 {[%clk 0:00:01]} 38. b8=Q {[%clk 0:00:04]}  Qxe3 {[%clk 0:00:01]} 39. Qh8# {[%clk 0:00:05]} 1-0


[Site "https://www.chess.com"]

[Event "Titled Tuesday Blitz August 22 Late 2023"]
[White "Kupervaser, Erez"]
[Black "Komov, Roman"]
[WhiteFideId "2814587"]
[BlackFideId "24175714"]
[WhiteElo "2427"]
[BlackElo "2702"]
[Result "0-1"]
[Round "2"]
[TimeControl "180+1"]
[Date "2023.08.22"]
[WhiteClock "0:00:11"]
[BlackClock "0:01:17"]
[Board "81"]

1. e4 {[%clk 0:03:00]}  c5 {[%clk 0:03:00]} 2. Nf3 {[%clk 0:03:01]}  d6 {[%clk 0:03:00]} 3. d4 {[%clk 0:03:01]}  cxd4 {[%clk 0:03:01]} 4. Nxd4 {[%clk 0:03:01]}  Nf6 {[%clk 0:03:02]} 5. Nc3 {[%clk 0:03:02]}  Nc6 {[%clk 0:03:02]} 6. Bc4 {[%clk 0:03:01]}  Qb6 {[%clk 0:03:02]} 7. Nb3 {[%clk 0:02:59]}  e6 {[%clk 0:03:02]} 8. Bf4 {[%clk 0:02:58]}  Ne5 {[%clk 0:03:01]} 9. Be2 {[%clk 0:02:58]}  Be7 {[%clk 0:03:00]} 10. g4 {[%clk 0:02:57]}  O-O {[%clk 0:02:54]} 11. g5 {[%clk 0:02:55]}  Nfd7 {[%clk 0:02:49]} 12. Qd2 {[%clk 0:02:56]}  a6 {[%clk 0:02:46]} 13. Be3 {[%clk 0:02:55]}  Qc7 {[%clk 0:02:46]} 14. O-O-O {[%clk 0:02:49]}  b5 {[%clk 0:02:46]} 15. f4 {[%clk 0:02:40]}  Nc4 {[%clk 0:02:45]} 16. Bxc4 {[%clk 0:02:41]}  Qxc4 {[%clk 0:02:42]} 17. a3 {[%clk 0:02:11]}  Bb7 {[%clk 0:02:35]} 18. f5 {[%clk 0:02:06]}  exf5 {[%clk 0:02:22]} 19. exf5 {[%clk 0:02:01]}  Bxh1 {[%clk 0:02:21]} 20. Rxh1 {[%clk 0:02:01]}  Rfe8 {[%clk 0:02:18]} 21. f6 {[%clk 0:01:53]}  Bf8 {[%clk 0:02:17]} 22. Bd4 {[%clk 0:01:47]}  gxf6 {[%clk 0:02:06]} 23. gxf6 {[%clk 0:01:45]}  Kh8 {[%clk 0:01:54]} 24. Rg1 {[%clk 0:01:45]}  Ne5 {[%clk 0:01:55]} 25. Bxe5 {[%clk 0:01:03]}  Rxe5 {[%clk 0:01:52]} 26. Kb1 {[%clk 0:01:00]}  Rae8 {[%clk 0:01:38]} 27. Ka2 {[%clk 0:00:53]}  a5 {[%clk 0:01:38]} 28. Qg2 {[%clk 0:00:22]}  Bh6 {[%clk 0:01:37]} 29. Qh3 {[%clk 0:00:22]}  Bg5 {[%clk 0:01:28]} 30. Rg4 {[%clk 0:00:20]}  Qe6 {[%clk 0:01:26]} 31. Qh5 {[%clk 0:00:20]}  Bxf6 {[%clk 0:01:20]} 32. Qh6 {[%clk 0:00:11]}  a4 {[%clk 0:01:17]} 0-1


[Site "https://www.chess.com"]

[Event "Titled Tuesday Blitz August 22 Late 2023"]
[White "Matinian, Nikita"]
[Black "Delorme, Laurie"]
[WhiteFideId "24129100"]
[BlackFideId "630829"]
[WhiteElo "2701"]
[BlackElo "2426"]
[Result "1-0"]
[Round "2"]
[TimeControl "180+1"]
[Date "2023.08.22"]
[WhiteClock "0:01:51"]
[BlackClock "0:00:39"]
[Board "82"]

1. e4 {[%clk 0:03:00]}  c5 {[%clk 0:02:59]} 2. Nf3 {[%clk 0:03:01]}  Nc6 {[%clk 0:02:59]} 3. Bb5 {[%clk 0:03:01]}  e6 {[%clk 0:02:58]} 4. c3 {[%clk 0:03:01]}  Nge7 {[%clk 0:02:53]} 5. d4 {[%clk 0:03:01]}  cxd4 {[%clk 0:02:50]} 6. cxd4 {[%clk 0:03:02]}  d5 {[%clk 0:02:49]} 7. e5 {[%clk 0:03:02]}  a6 {[%clk 0:02:49]} 8. Ba4 {[%clk 0:03:00]}  b5 {[%clk 0:02:47]} 9. Bc2 {[%clk 0:02:55]}  Bb7 {[%clk 0:02:48]} 10. O-O {[%clk 0:02:52]}  Rc8 {[%clk 0:02:48]} 11. Nc3 {[%clk 0:02:51]}  Qb6 {[%clk 0:02:48]} 12. h4 {[%clk 0:02:49]}  a5 {[%clk 0:02:42]} 13. a4 {[%clk 0:02:47]}  b4 {[%clk 0:02:22]} 14. Nb5 {[%clk 0:02:47]}  Nf5 {[%clk 0:02:22]} 15. Bxf5 {[%clk 0:02:46]}  exf5 {[%clk 0:02:23]} 16. Re1 {[%clk 0:02:43]}  Nd8 {[%clk 0:02:14]} 17. Qd3 {[%clk 0:02:35]}  g6 {[%clk 0:02:12]} 18. Bg5 {[%clk 0:02:34]}  Rc4 {[%clk 0:01:50]} 19. Nd6+ {[%clk 0:02:17]}  Bxd6 {[%clk 0:01:50]} 20. exd6+ {[%clk 0:02:18]}  Ne6 {[%clk 0:01:49]} 21. d7+ {[%clk 0:02:18]}  Kxd7 {[%clk 0:01:40]} 22. Ne5+ {[%clk 0:02:18]}  Kc8 {[%clk 0:01:35]} 23. Nxc4 {[%clk 0:02:19]}  dxc4 {[%clk 0:01:35]} 24. Qxc4+ {[%clk 0:02:19]}  Kb8 {[%clk 0:01:36]} 25. d5 {[%clk 0:02:05]}  Nxg5 {[%clk 0:01:35]} 26. hxg5 {[%clk 0:02:03]}  Rd8 {[%clk 0:01:35]} 27. Rad1 {[%clk 0:02:00]}  Qd6 {[%clk 0:01:22]} 28. Qb5 {[%clk 0:01:58]}  Qf4 {[%clk 0:00:39]} 29. Re7 {[%clk 0:01:51]} 1-0


[Site "https://www.chess.com"]